Cogmind - Beta 13 @@@ ROGUE MODE // 2024.04.08 @ 16:31:37 Player: Lunace Result: Destroyed by Y-54 Guardian with Gatling Laser Performance ------------- Evolutions (3) 1500 Regions Visited (8) 1600 Robots Destroyed (104) 520 Value Destroyed (4187) 4187 Prototype IDs (5) 100 Alien Tech Used (0) 0 Bonus (2036) 2036 TOTAL SCORE: 9943 Bonus ------- High Alert Combat Kills 652 Follower Combat Kills 270 Entered Garrisons 400 Used RIF Installer 500 Aligned with FarCom 300 Friendly Fire -86 Cogmind --------- Core Integrity 0/700 Matter 247/300 Energy 1453/1600 System Corruption 0% Temperature Warm (100) Movement Walking (190) Ox1 Location -7/Garrison Parts ------- > --- POWER (1) -------- (None) > --- PROPULSION (4) --- Aluminum Leg Aluminum Leg Cooled VTOL Module > --- UTILITY (6) ------ Large Storage Unit Superbattery Hacking Suite System Shield Relay Coupler [Sentry] (17) > --- WEAPON (2) ------- Arc Projector > --- INVENTORY (15) --- Enhanced Nuclear Core Compact Matter Pod (150) Improved Sensor Array Hacking Suite Hacking Suite Relay Coupler [Hunter] (14) Peak State ------------ > --- POWER ------------ Improved Deuterium Engine > --- PROPULSION ------- Carbon-fiber Leg Carbon-fiber Leg Titanium Leg Improved Titanium Leg > --- UTILITY ---------- Large Storage Unit Superbattery Advanced Visual Processing Unit Hacking Suite System Shield Relay Coupler [Grunt] > --- WEAPON ----------- Guided Plasma Cannon Remote Datajack > --- INVENTORY -------- Light Nuclear Core Light Treads Light Treads Aluminum Leg Carbon-fiber Leg Compact Matter Pod Compact Matter Pod Hacking Suite Relay Coupler [Swarmer] Relay Coupler [Grunt] Relay Coupler [Sentry] Relay Coupler [Hunter] Rocket Launcher [Rating: 55] Favorites ----------- Power Ion Engine Engine Ion Engine Power Core Light Nuclear Core Propulsion Light Treads Treads Light Treads Leg Carbon-fiber Leg Flight Unit VTOL Module Utility Large Storage Unit Device Trap Scanner Storage Large Storage Unit Processor Improved Targeting Computer Hackware Hacking Suite Protection Heavy Armor Plating Weapon Guided Plasma Cannon Energy Gun Medium Laser Energy Cannon Guided Plasma Cannon Ballistic Gun Assault Rifle Launcher Rocket Launcher Special Weapon Remote Datajack Build | -11 -10 -10 -10 -9 -8 -8 -7 -7 ------- Run | Yrd Mat Min Exi Min Mat Gar Fac Gar Slots Evolved 6 | . . . . . 4 . 2 . Power . | . . . . . . . . . Propulsion 2 | . . . . . 1 . 1 . Utility 4 | . . . . . 3 . 1 . Weapon . | . . . . . . . . . Parts Attached 108 | 7 8 5 2 . 15 3 50 18 Power 11 | 1 . . . . 2 1 6 1 Engine 5 | 1 . . . . 2 1 1 . Core 6 | . . . . . . . 5 1 Reactor . | . . . . . . . . . Propulsion 29 | 2 . 1 . . 3 2 13 8 Treads 13 | 2 . 1 . . 3 2 5 . Leg 9 | . . . . . . . 7 2 Wheel . | . . . . . . . . . Hover . | . . . . . . . . . Flight 7 | . . . . . . . 1 6 Utility 47 | 2 3 2 1 . 10 . 23 6 Device 13 | 1 1 2 . . 3 . 6 . Storage 10 | 1 1 . 1 . 3 . 3 1 Processor 5 | . . . . . 3 . 2 . Hackware 13 | . . . . . . . 10 3 Protection 6 | . 1 . . . 1 . 2 2 Artifact . | . . . . . . . . . Weapon 21 | 2 5 2 1 . . . 8 3 Energy Gun 6 | 1 3 . . . . . . 2 Energy Cannon 4 | . 1 . 1 . . . 2 . Ballistic Gun 3 | 1 1 1 . . . . . . Ballistic Cannon . | . . . . . . . . . Launcher 3 | . . 1 . . . . 2 . Special Weapon 5 | . . . . . . . 4 1 Impact Weapon . | . . . . . . . . . Slashing Weapon . | . . . . . . . . . Piercing Weapon . | . . . . . . . . . Special Melee Weapon . | . . . . . . . . . Unidentified Prototypes 5 | . . . 2 . . . 3 . Parts Lost 31 | . . . . . 3 5 11 12 Power 5 | . . . . . 1 1 2 1 Propulsion 13 | . . . . . . 4 4 5 Utility 7 | . . . . . 2 . 3 2 Weapon 6 | . . . . . . . 2 4 Highest Loss Streak 11 | . . . . . 3 4 2 11 To Critical Strikes . | . . . . . . . . . Average Slot Usage (%) 88 | . 100 100 91 85 85 86 84 90 Engine 6 | . 14 14 14 14 5 8 2 . Core 1 | . . . . . . . 3 6 Treads 18 | . 28 28 28 28 27 23 11 1 Leg 4 | . . . . . . . 9 . Device 6 | . 7 14 5 . 6 9 5 . Storage 15 | . 14 14 22 28 21 18 12 7 Processor 6 | . . . . . 13 18 5 5 Hackware 8 | . . . . . . . 15 24 Protection 1 | . 6 . . . 2 . 2 5 Energy Gun 1 | . 18 1 . . . . . . Energy Cannon 8 | . 6 14 14 14 9 9 6 6 Launcher 2 | . . 6 5 . . . 3 . Special Weapon 2 | . . . . . . . 3 6 Naked Turns . | . . . . . . . . . Heaviest Build 60 | 15 34 32 47 47 53 51 60 44 Greatest Support 82 | 40 40 40 40 40 60 60 82 22 Greatest Overweight (x) 3 | 3 . . 1 1 . 2 2 2 Average Overweight (x) . | . . . . 1 . . . 1 Largest Inventory Capacity 15 | 8 15 15 15 15 15 15 15 15 Average Capacity 14 | 7 11 15 15 15 15 15 15 15 Most Carried 15 | 3 13 15 15 13 15 15 15 15 Average Carried 11 | 2 8 13 13 12 12 14 11 13 Final Capacity 15 | 8 15 15 15 15 15 15 15 15 Final Carried 15 | 3 13 15 12 13 15 14 15 6 Class Distribution -------------------- 59% | Mutant 21% | Hacker-Mutant 16% | Bothacker-Mutant 3% | Scavenger-Mutant Dominant Class ---------------- Mutant | -10/Materials Mutant | -10/Mines Mutant | -10/Exiles Mutant | -9/Mines Mutant | -8/Materials Mutant | -8/Garrison Hacker-Mutant | -7/Factory Hacker-Mutant | -7/Garrison Resources | -11 -10 -10 -10 -9 -8 -8 -7 -7 ----------- Run | Yrd Mat Min Exi Min Mat Gar Fac Gar Matter Collected 2025 | 288 82 312 46 . 76 42 1052 127 Remotely 30 | . . . . . 30 . . . Salvage Created 3519 | 139 196 226 . . 543 529 1766 120 Parts 189 | 7 15 8 . . 46 23 81 9 Haulers Intercepted 1 | . 1 . . . . . . . Recyclers Shooed 2 | 1 . 1 . . . . . . Parts Field Recycled . | . . . . . . . . . Retrieved Matter . | . . . . . . . . . Parts Self-Destructed . | . . . . . . . . . Prevented . | . . . . . . . . . Kills | -11 -10 -10 -10 -9 -8 -8 -7 -7 ------- Run | Yrd Mat Min Exi Min Mat Gar Fac Gar Combat Hostiles Destroyed 79 | . 5 9 . . 10 16 34 5 Guns 6 | . 5 1 . . . . . . Cannons 44 | . . 6 . . 6 6 21 5 AOE 21 | . . 2 . . . 8 11 . Classes Destroyed 16 | 2 3 1 . . 6 2 2 . Worker 4 | . . . . . 3 . 1 . Builder 4 | . . . . . 4 . . . Tunneler 5 | 3 . . . . 1 . 1 . Hauler 1 | . 1 . . . . . . . Recycler 5 | 1 . . . . 1 . 3 . Operator 4 | . . . . . 1 . 3 . Watcher 4 | . . . . . 3 . 1 . Swarmer 18 | . 3 3 . . . 3 4 5 Grunt 42 | . 2 4 . . 5 11 20 . Brawler 1 | . . . . . . . 1 . Protector 1 | . . . . . . 1 . . Sentry 5 | . . . . . 3 . 2 . Demolisher 1 | . . . . . . 1 . . Hunter 3 | . . . . . 2 . 1 . Programmer 6 | . . . . . . . 6 . Assembled 2 | . . 2 . . . . . . Best Kill Streak 7 | 3 5 3 . . 7 7 5 3 Combat Bots Only 7 | . 5 3 . . 3 7 5 3 Max Kills in Single Turn 4 | 1 1 1 . . 4 2 3 1 Gunslinging . | . . . . . . . . . Exploded 3 | . . 1 . . . 2 3 . Melee . | . . . . . . . . . Uniques/NPCs Destroyed . | . . . . . . . . . Combat | -11 -10 -10 -10 -9 -8 -8 -7 -7 -------- Run | Yrd Mat Min Exi Min Mat Gar Fac Gar Hostile Shots Fired 543 | . 23 45 . . 39 30 207 199 Missed 200 | . 5 16 . . 7 8 81 83 Damage Taken 5019 | . 187 384 . . 562 654 1932 1300 Core 870 | . 37 27 . . 15 89 280 422 Absorbed by Shields 194 | . . . . . . . 194 . Core Remaining (%) 85 | 100 . . . 74 . 81 . . Volleys Fired 241 | 6 21 26 . . 23 22 119 24 Largest 2 | 2 2 2 . . 1 1 1 2 Hottest 125 | 70 100 125 . . 100 100 120 120 Shots Fired 291 | 12 39 50 . . 23 22 119 26 Gun 76 | 12 39 21 . . . . . 4 Cannon 167 | . . 26 . . 23 22 84 12 Launcher 14 | . . 3 . . . . 11 . Special 34 | . . . . . . . 24 10 Kinetic 26 | 6 4 16 . . . . . . Thermal 213 | 6 35 31 . . 23 22 84 12 Explosive 14 | . . 3 . . . . 11 . Electromagnetic 4 | . . . . . . . . 4 Robot Hit Streak 37 | 4 7 6 . . 5 2 28 37 Robot Miss Streak 4 | 1 3 4 . . 3 2 4 1 Penetration Max . | . . . . . . . . . Secondary Targets . | . . . . . . . . . Shots Hit Robots 189 | 9 24 24 . . 14 7 93 18 Core Hits 119 | 5 10 16 . . 15 17 52 4 Critical Kills 6 | . . . . . 4 2 . . Critical Parts Destroyed . | . . . . . . . . . Critical Strikes 8 | . 2 . . . 4 2 . . Burn 2 | . 2 . . . . . . . Meltdown 6 | . . . . . 4 2 . . Melee Attacks . | . . . . . . . . . Impact . | . . . . . . . . . Slashing . | . . . . . . . . . Piercing . | . . . . . . . . . Sneak Attacks . | . . . . . . . . . Combat Hostiles . | . . . . . . . . . Follow-up Attacks . | . . . . . . . . . Damage Inflicted 10251 | 136 309 548 . . 2804 1828 4259 367 Guns 619 | 136 309 131 . . . . . 43 Cannons 6257 | . . 282 . . 1749 848 3054 324 Explosions 3359 | . . 135 . . 1048 980 1196 . Melee . | . . . . . . . . . Ramming 16 | . . . . . 7 . 9 . Kinetic 186 | 72 42 72 . . . . . . Thermal 9070 | 64 267 341 . . 2797 1828 3449 324 Explosive 936 | . . 135 . . . . 801 . Electromagnetic 43 | . . . . . . . . 43 Impact . | . . . . . . . . . Slashing . | . . . . . . . . . Piercing . | . . . . . . . . . Highest Corruption 6 | . . . . . . . 6 . Average Corruption 3 | . . . . . . . 3 . Corruption Purged 6 | . . . . . . . 6 . Corruption Blocked . | . . . . . . . . . Effects 36 | . . . . . . . 36 . Message Errors 12 | . . . . . . . 12 . Matter Fused 9 | . . . . . . . 9 . Heat Flow Errors 3 | . . . . . . . 3 . Energy Discharges 3 | . . . . . . . 3 . Parts Rejected 1 | . . . . . . . 1 . Data Loss (minor) 6 | . . . . . . . 6 . Data Loss (major) 1 | . . . . . . . 1 . Alerts 1 | . . . . . . . 1 . Overload Shots . | . . . . . . . . . Overflow Damage 926 | . . . . . 443 169 268 46 Projectiles 652 | . . . . . 327 87 192 46 Explosions 274 | . . . . . 116 82 76 . Melee . | . . . . . . . . . Knockbacks . | . . . . . . . . . Impact . | . . . . . . . . . Kinetic . | . . . . . . . . . Secondary . | . . . . . . . . . Self-Inflicted Damage 667 | . . . . . 74 251 342 . Shots 11 | . . . . . 1 5 5 . Rammed 4 | . . . . . 1 . 3 . Targets Rammed 4 | . . . . . 1 . 3 . Kicked . | . . . . . . . . . Crushed . | . . . . . . . . . Highest Temperature 609 | 27 372 288 . . 16 68 609 288 Average Temperature 121 | 11 163 92 . . 9 23 136 102 Received Heat Transfer 1304 | . 81 165 . . 198 144 404 312 Effects 19 | . 3 3 . . . . 13 . Shutdowns 2 | . . . . . . . 2 . Energy Bleed 5 | . 3 . . . . . 2 . Interference 9 | . . 3 . . . . 6 . Damage (major) 3 | . . . . . . . 3 . Siege Activations . | . . . . . . . . . Robots Corrupted . | . . . . . . . . . Combat Hostiles . | . . . . . . . . . Parts Fried . | . . . . . . . . . Impact Corruptions . | . . . . . . . . . Robots Melted 8 | . . . . . 4 2 2 . Combat Hostiles 8 | . . . . . 4 2 2 . Parts Melted 28 | 1 1 . . . 7 3 15 1 Heat Transferred 13086 | 185 925 740 . . 2480 1721 6315 720 Parts Sabotaged . | . . . . . . . . . Parts Stolen . | . . . . . . . . . Parts Stripped . | . . . . . . . . . Power Chain Reactions . | . . . . . . . . . Alert | -11 -10 -10 -10 -9 -8 -8 -7 -7 ------- Run | Yrd Mat Min Exi Min Mat Gar Fac Gar Peak Influence 1025 | 20 207 198 . . 410 833 1025 660 Initial 436 | . 13 2 . . . 242 436 427 Average 459 | 7 70 100 . . 285 599 636 549 Maximum Alert Level 3 | . 1 . . . 2 3 3 2 Low Security (%) 24 | 100 82 100 . 100 21 . . . Level 1 11 | . 17 . . . 66 18 2 . Level 2 41 | . . . . . 12 36 61 100 Level 3 23 | . . . . . . 44 35 . Level 4 . | . . . . . . . . . Level 5 . | . . . . . . . . . High Security . | . . . . . . . . . Max Security . | . . . . . . . . . Squads Dispatched 15 | . . . . . . . 15 . Investigation 3 | . . . . . . . 3 . Extermination 7 | . . . . . . . 7 . Reinforcement 3 | . . . . . . . 3 . Assault 1 | . . . . . . . 1 . Garrison 1 | . . . . . . . 1 . Intercept . | . . . . . . . . . Searches Triggered . | . . . . . . . . . Construction Impeded . | . . . . . . . . . Haulers Reinforced 1 | . . . . . . . 1 . Active Scanning Responses . | . . . . . . . . . Cargo Convoy Interrupts 1 | . . . . . . . 1 . Stealth | -11 -10 -10 -10 -9 -8 -8 -7 -7 --------- Run | Yrd Mat Min Exi Min Mat Gar Fac Gar Distress Signals 6 | . . . . . 2 . 4 . Communications Jammed . | . . . . . . . . . Distress Signals . | . . . . . . . . . Times Spotted 141 | . 10 10 . . 17 12 69 23 Peak Tracking Total 11 | . 7 4 . . 4 3 6 11 Tactical Retreats 8 | . 1 1 . . . . 4 2 Traps | -11 -10 -10 -10 -9 -8 -8 -7 -7 ------- Run | Yrd Mat Min Exi Min Mat Gar Fac Gar Traps Triggered 4 | . . . . . . . 3 1 Indirectly . | . . . . . . . . . Trap Hack Attempts . | . . . . . . . . . Triggered . | . . . . . . . . . Disarmed . | . . . . . . . . . Reprogrammed . | . . . . . . . . . Reused 2 | . . 2 . . . . . . Traps Extracted . | . . . . . . . . . Installed 3 | . . 3 . . . . . . Triggered 1 | . . . . . . . 1 . Machines | -11 -10 -10 -10 -9 -8 -8 -7 -7 ---------- Run | Yrd Mat Min Exi Min Mat Gar Fac Gar Machines Disabled 18 | . . . . . 4 4 9 1 Max in Single Turn 3 | . . . . . 2 1 3 1 Garrison Relay 3 | . . . . . . 2 . 1 Machines Repaired . | . . . . . . . . . Machines Dismantled . | . . . . . . . . . Machines Sabotaged . | . . . . . . . . . Overloaded Fab Kills . | . . . . . . . . . Hacking | -11 -10 -10 -10 -9 -8 -8 -7 -7 --------- Run | Yrd Mat Min Exi Min Mat Gar Fac Gar Machines Accessed 32 | . 6 . . . 9 2 14 1 Terminals 19 | . 4 . . . 7 2 5 1 Fabricators 4 | . . . . . . . 4 . Repair Stations . | . . . . . . . . . Recycling Units 5 | . 2 . . . 1 . 2 . Scanalyzers 2 | . . . . . . . 2 . Garrison Access 2 | . . . . . 1 . 1 . Total Hacks 82 | . 14 . . . 26 2 38 2 Successful 47 | . 6 . . . 13 1 26 1 Failed 35 | . 8 . . . 13 1 12 1 Catastrophic 7 | . 1 . . . 2 1 3 . Database Lockouts . | . . . . . . . . . Manual 54 | . 11 . 1 . 24 1 17 . Terminals 55 | . 12 . . . 23 2 16 2 Fabricators 12 | . . . . . . . 12 . Repair Stations . | . . . . . . . . . Recycling Units 7 | . 2 . . . 1 . 4 . Scanalyzers 4 | . . . . . . . 4 . Garrison Access 4 | . . . . . 2 . 2 . Terminal Hacks 13 | . 1 . . . 6 1 4 1 Part Schematic 3 | . . . . . 3 . . . Fabricator Index 2 | . . . . . 1 . 1 . Alert Level 1 | . . . . . 1 . . . Unreport Threat 3 | . . . . . . . 3 . Maintenance Status 1 | . . . . . 1 . . . Hauler Manifests 1 | . 1 . . . . . . . Garrison Registry 1 | . . . . . . 1 . . Security Stations 1 | . . . . . . . . 1 Fabricator Hacks 8 | . . . . . . . 8 . Load Schematic 5 | . . . . . . . 5 . Build 3 | . . . . . . . 3 . Repair Station Hacks . | . . . . . . . . . Recycling Unit Hacks 6 | . 2 . . . 1 . 3 . Process 1 | . . . . . . . 1 . Report Inventory 5 | . 2 . . . 1 . 2 . Scanalyzer 4 | . . . . . . . 4 . Insert Component 2 | . . . . . . . 2 . Analyze 2 | . . . . . . . 2 . Garrison Access Hacks 3 | . . . . . 1 . 2 . Unlock Access 2 | . . . . . 1 . 1 . Coupler Status 1 | . . . . . . . 1 . Unauthorized Hacks 13 | . 3 . . . 5 . 5 . Terminals 13 | . 3 . . . 5 . 5 . Assimilate 1 | . . . . . 1 . . . Botnet 12 | . 3 . . . 4 . 5 . Fabricators . | . . . . . . . . . Repair Stations . | . . . . . . . . . Recycling Units . | . . . . . . . . . Scanalyzers . | . . . . . . . . . Garrison Access . | . . . . . . . . . Data Cores Recovered . | . . . . . . . . . Used . | . . . . . . . . . Hacking Detections 25 | . 5 . . . 7 1 11 1 Full Trace Events 3 | . 1 . . . . . 2 . Feedback Events . | . . . . . . . . . Feedback Blocked . | . . . . . . . . . Robot Schematics Acquired . | . . . . . . . . . Robots Built . | . . . . . . . . . Authchips . | . . . . . . . . . Time . | . . . . . . . . . Total Robot Build Rating . | . . . . . . . . . Part Schematics Acquired 5 | . . . . . 3 . 2 . Parts Built 3 | . . . . . . . 3 . Authchips 1 | . . . . . . . 1 . Time 133 | . . . . . . . 133 . Total Part Build Rating 9 | . . . . . . . 9 . Parts Repaired . | . . . . . . . . . Time . | . . . . . . . . . Parts Recycled . | . . . . . . . . . Recycled Matter 346 | . . . . . . . 346 . Retrieved Matter . | . . . . . . . . . Retrieved Components . | . . . . . . . . . Parts Scanalyzed 2 | . . . . . . . 2 . Part Schematics Acquired 2 | . . . . . . . 2 . Parts Damaged . | . . . . . . . . . Bothacking | -11 -10 -10 -10 -9 -8 -8 -7 -7 ------------ Run | Yrd Mat Min Exi Min Mat Gar Fac Gar Used RIF Installer 1 | . . . . . . 1 . . Robots Hacked 19 | . . . . . . . 11 8 Non-combat . | . . . . . . . . . Combat 19 | . . . . . . . 11 8 Robot Hacks Applied 22 | . . . . . . . 14 8 link_fov 1 | . . . . . . . 1 . broadcast_data 1 | . . . . . . . 1 . spike_heat 1 | . . . . . . . 1 . amplify_resonance 1 | . . . . . . . . 1 disable_weapons 2 | . . . . . . . 2 . go_dormant 2 | . . . . . . . 2 . overwrite_iff 13 | . . . . . . . 6 7 formatsys_high 1 | . . . . . . . 1 . Relay Couplers Released 14 | . . . . . . 9 . 5 Machine Destruction 14 | . . . . . . 9 . 5 Attached 7 | . . . . . . . 4 3 Fabnet Peak Effective % . | . . . . . . . . . Robots Rewired 4 | . . . . . . . 4 . Allies Hacked 1 | . . . . . . . 1 . Hacks Repelled 1 | . . . . . . . 1 . Allies | -11 -10 -10 -10 -9 -8 -8 -7 -7 -------- Run | Yrd Mat Min Exi Min Mat Gar Fac Gar Total Allies 19 | . . . . . 1 . 11 7 Largest Group 4 | . . . . . 1 1 3 4 Highest-Rated Group 109 | . . . . . 10 10 93 109 Highest-Rated Ally 40 | . . . . . 10 10 40 32 Total Orders 2 | . . . . . 2 . . . STAY 1 | . . . . . 1 . . . FOLLOW 1 | . . . . . 1 . . . Ally Attacks 62 | . . . . . . . 47 15 Total Damage 1952 | . . . . . . . 1671 281 Kills 9 | . . . . . . . 7 2 Allies Corrupted . | . . . . . . . . . Allies Melted . | . . . . . . . . . Intel | -11 -10 -10 -10 -9 -8 -8 -7 -7 ------- Run | Yrd Mat Min Exi Min Mat Gar Fac Gar Robot Analysis Total . | . . . . . . . . . Derelict Logs Recovered 1 | . . 1 . . . . . . Drone Launches . | . . . . . . . . . Drone Recoveries . | . . . . . . . . . Exploration | -11 -10 -10 -10 -9 -8 -8 -7 -7 ------------- Run | Yrd Mat Min Exi Min Mat Gar Fac Gar Turns Passed 7710 | 136 644 571 478 362 669 788 3751 311 Spaces Moved 3796 | 68 337 279 235 149 326 367 1913 122 Core 7 | 7 . . . . . . . . Treads 3049 | 61 337 279 235 149 326 367 1271 24 Legs 644 | . . . . . . . 642 2 Wheels . | . . . . . . . . . Hover . | . . . . . . . . . Flight 96 | . . . . . . . . 96 Fastest Speed 50 | 50 160 160 160 240 160 163 120 158 Average Speed 173 | 154 160 160 199 240 162 182 169 173 Slowest Speed 320 | 200 160 160 240 240 163 320 320 260 Overloaded Moves . | . . . . . . . . . Propulsion Burnouts . | . . . . . . . . . Robots Hopped . | . . . . . . . . . Cave-ins Triggered . | . . . . . . . . . Exploration Rate (%) 44 | 4 63 61 60 42 34 55 53 27 Regions Visited 8 Branch Regions 3 Pre-discovered Areas . | . . . . . . . . . Known Exits Taken 2 | . . . . . 1 . 1 . Unknown Exits Taken 5 | 1 1 1 1 1 . . . . Scrap Searched 1 | . . 1 . . . . . . Spaces Dug 14 | . . . . . . 14 . . Terrain Destroyed 518 | . . 14 . . 186 173 145 . Melee . | . . . . . . . . . Projectile 22 | . . . . . 6 12 4 . AOE 496 | . . 14 . . 180 161 141 . Terrain Rammed . | . . . . . . . . . Walls Destroyed . | . . . . . . . . . Machines Disabled . | . . . . . . . . . Actions | -11 -10 -10 -10 -9 -8 -8 -7 -7 --------- Run | Yrd Mat Min Exi Min Mat Gar Fac Gar Total 4571 | 83 403 351 250 155 394 423 2311 201 Wait 252 | . 19 39 . 4 18 18 152 2 Move 3788 | 67 336 278 234 148 325 366 1912 122 Hop . | . . . . . . . . . Pick Up 75 | 3 12 . 5 2 5 8 32 8 Fast Attach 32 | 7 1 . . . 5 . 16 3 Attach 48 | . 1 . 1 . 7 3 24 12 Detach 7 | . 2 . . . 3 . 2 . Swap 28 | . 6 5 1 . 3 . 10 3 Drop 66 | . 5 . 9 1 4 6 32 9 Fire 241 | 6 21 26 . . 23 22 119 24 Melee . | . . . . . . . . . Ram . | . . . . . . . . . Kick . | . . . . . . . . . Crush 4 | . . . . . 1 . 3 . Escape Stasis 18 | . . . . . . . . 18 Rewire 9 | . . . . . . . 9 . Trap 3 | . . 3 . . . . . . Miscellaneous . | . . . . . . . . . Route ------- -11/Scrapyard -10/Materials (discovered 3 exits: [*Mat x2] / [*Min]) -10/Mines (discovered 3 exits: [*Mat x2] / *Exi) -10/Exiles -9/Mines -8/Materials (discovered 2 exits: *Fac / Gar) -8/Garrison (discovered 3 exits: *Fac x3) -7/Factory (discovered 3 exits: [*Fac] / [*Low] / Gar) -7/Garrison History --------- Turn | Location | Event 24 | -11/Scrapyard | Discovered new exit (range 16) 137 | -11/Scrapyard | Entered Materials 207 | -10/Materials | Discovered new exit (range 16) 317 | -10/Materials | Build established: Mutant 409 | -10/Materials | Discovered new exit (range 16) 590 | -10/Materials | Discovered new exit (range 13) 781 | -10/Materials | Entered Mines 798 | -10/Mines | Discovered new exit (range 10) 1096 | -10/Mines | Assembled infested the area 1101 | -10/Mines | Assisted by a Guerilla fighting off Assembled 1103 | -10/Mines | Found a hidden stash of uninstalled traps 1302 | -10/Mines | Learned Materials garrison access intel 1305 | -10/Mines | Discovered new exit (range 16) 1345 | -10/Mines | Deemed a non-threat by the Exiles lab entrance 1345 | -10/Mines | Discovered new exit (range 5) 1352 | -10/Mines | Entered Exiles 1389 | -10/Exiles | Met 8R-AWN 1420 | -10/Exiles | Met EX-HEX 1464 | -10/Exiles | Met EX-BIN 1487 | -10/Exiles | Aligned with FarCom system 1488 | -10/Exiles | Given EX-Vault access code 1525 | -10/Exiles | Opened EX-Vault 1536 | -10/Exiles | Found Prototype Storage 1537 | -10/Exiles | Identified Superbattery 1542 | -10/Exiles | Found Prototype Energy Cannon 1550 | -10/Exiles | Found Prototype Energy Cannon 1552 | -10/Exiles | Identified YOLO Cannon 1603 | -10/Exiles | Warned to stay clear of 0b10 Research branches 1673 | -10/Exiles | Met EX-DEC 1811 | -10/Exiles | Discovered new exit (range 10) 1830 | -10/Exiles | Stole three prototypes: YOLO Cannon, Superbattery, Gui. Plasma Cannon 1830 | -10/Exiles | Entered Mines 1889 | -9/Mines | Received a Rocket Launcher from a helpful Derelict 2003 | -9/Mines | Discovered new exit (range 7) 2192 | -9/Mines | Entered Materials 2192 | -8/Materials | Evolved 4 slots: Propulsion x1, Utility x3 2193 | -8/Materials | Loaded intel: 1 garrison access location 2422 | -8/Materials | Lost 3 parts (1p2u) 2841 | -8/Materials | Discovered new exit (range 13) 2847 | -8/Materials | Identified exit to Garrison 2861 | -8/Materials | Entered Garrison 2861 | -8/Garrison | Accompanied by 1 ally 2936 | -8/Garrison | Triggered checkpoint 2938 | -8/Garrison | Triggered checkpoint 3009 | -8/Garrison | Triggered checkpoint 3080 | -8/Garrison | Destroyed 7 combat bots 3186 | -8/Garrison | Discovered new exit (range 13) 3209 | -8/Garrison | Discovered new exit (range 90) 3209 | -8/Garrison | Discovered new exit (range 76) 3209 | -8/Garrison | Discovered new exit (range 7) 3255 | -8/Garrison | Triggered checkpoint 3300 | -8/Garrison | Garrison Relay disabled 3460 | -8/Garrison | Installed Relay Interface Framework 3484 | -8/Garrison | Triggered checkpoint 3524 | -8/Garrison | Lost 4 parts (4n) 3649 | -8/Garrison | Entered Factory 3649 | -7/Factory | Evolved 2 slots: Propulsion x1, Utility x1 3651 | -7/Factory | FarCom data flow suspended 3794 | -7/Factory | Identified Gui. Plasma Cannon 4743 | -7/Factory | Fabricated Hacking Suite (x1) 4931 | -7/Factory | Discovered new exit (range 19) 4996 | -7/Factory | Discovered new exit (range 20) 5086 | -7/Factory | Build established: Bothacker-Mutant 5208 | -7/Factory | Fabricated Hacking Suite (x1) 5417 | -7/Factory | Cargo convoy interrupted 5668 | -7/Factory | Fabricated Hacking Suite? 6049 | -7/Factory | First assault squad dispatched 6302 | -7/Factory | Build established: Hacker-Mutant 6302 | -7/Factory | Garrison activated, responded to threat 7358 | -7/Factory | Identified exit to Garrison 7400 | -7/Factory | Entered Garrison 7477 | -7/Garrison | Learned Factory security intel 7510 | -7/Garrison | Triggered checkpoint 7536 | -7/Garrison | Garrison Relay disabled 7646 | -7/Garrison | Triggered checkpoint 7658 | -7/Garrison | Core integrity fell below 50% 7661 | -7/Garrison | Triggered checkpoint 7661 | -7/Garrison | Triggered checkpoint 7702 | -7/Garrison | Core integrity fell below 20% 7711 | -7/Garrison | Destroyed by Y-54 Guardian with Gatling Laser Last Messages --------------- Jacked G-47 Trooper... >>overwrite_iff Rewriting IFF filter. G-47 Trooper destroyed. S-27 Virus destroyed. Y-54 Guardian destroyed. G-47 Trooper destroyed. Acquired Imp. Light Armor Plating. Remote Datajack destroyed. Network quickbooting Y-54 Guardian, ETC: 8. Network quickbooting G-50 Soldier, ETC: 10. Acquired Aluminum Leg. Acquired 52 matter. Y-54 Guardian reactivates. G-50 Soldier reactivates. VTOL Module destroyed. Acquired Aluminum Leg. Discarded Relay Coupler [Grunt]. Imp. Light Armor Plating destroyed. Arc Projector destroyed. Map ----- +----------------------------------------------------+ | ???????????????????????????????? ??# #?#""## #??? | | ???????????????????????????????? ??# #?# T## #??? | | ???????????????????????????????? ??# #?# "## #??? | | ???????????????????????############# ### ### #??? | | ???????????????????????# *%[ #??? | | ???????????????????????# [% #??? | | ???????????????????????# #########^ ##########??? | | ???????????????????????# #???????# #???????????? | | ???????????????????????# #???????# #???????????? | | ???????????????????????# #???????# #???????????? | | ?????????????????####??# #???????# #???????????? | | ?????????????# ??# ?# #???????#^ #???????????? | | ????????????## ## % ## ##??????# #???????????? | | ????????????# % ######## #???????????? | | ?????????? #???????????? | | ?????????? #???????????? | | ???????????## ## ## ###########???????????? | | ????????????# ## ## ###???????????????????? | | ??????????? ^ [[%#???????????????????? | | ??????????? [= ^ !#???????????????????? | | ??????????? =[% ^ #???????????????????? | | ??????????? " ^%* #???????????????????? | | ????????????#"%"## ##gs ###???????????????????? | | ????????????# ## ##% ##########????????????? | | ????????????# [Y! #????????????? | | ????????????# g%@ #????????????? | | ????????????# s ####### #????????????? | | ????????????# ## ## ##?????????????????????? | | ????????????# ??#CC ?# #??????????????????????? | | ?????????????????####??# #??????????????????????? | | ???????????????????????# #??????????????????????? | | ???????????????????????# #??????????????????????? | | ???????????????????????# #??????????????????????? | | ???????????????????????# #??????????????????????? | | ???????????????????????# ???????????????????????? | | ???????????????????????# ???????????????????????? | | ???????????????????????# ???????????????????????? | | ???????????????????????###???????????????????????? | | ?????????????????????????????????????????????????? | | ?????????????????????????????????????????????????? | | ?????????????????????????????????????????????????? | | ?????????????????????????????????????????????????? | | ?????????????????????????????????????????????????? | | ?????????????????????????????????????????????????? | | ?????????????????????????????????????????????????? | | ?????????????????????????????????????????????????? | | ?????????????????????????????????????????????????? | | ?????????????????????????????????????????????????? | | ?????????????????????????????????????????????????? | | ?????????????????????????????????????????????????? | +----------------------------------------------------+ Best States ------------- Heat Dissipation 48 Energy Generation 17 Energy Capacity 1790 Matter Stores 480 Matter Capacity 500 Sight Range 20 Robot Scan Range 15 Terrain Scan Range 16 Terrain Scan Density 10 Armor Coverage 600 Evasion (%) 55 Targeting Accuracy 18 Recoil Reduction 4 Offensive Hacking 30 Defensive Hacking 10 Relay Coupler Types 2 Relay Coupler Value 51 Authchip Count 5 Item Schematics ----------------- Hacking Suite | -8/Materials | Hacked System Shield | -8/Materials | Hacked Datajack | -8/Materials | Hacked Remote Datajack | -7/Factory | Scanalyzed Cld. VTOL Module | -7/Factory | Scanalyzed Robot Schematics ------------------ None Fabricated ------------ Hacking Suite | x1 | -7/Factory | Authchip Hacking Suite | x1 | -7/Factory Hacking Suite | x1 | -7/Factory Alien Tech Used ----------------- None Achievements -------------- Assimilation Complete Error 47 root@ Challenges ------------ None Game ------ Seed InsulatedFortressPit Manual? 0 Play Time 01:24:38 Cumulative 40.9 hours Start 2024.04.08 @ 15:02:44 End 2024.04.08 @ 16:31:37 Sessions 1 Manual Loads 0 Difficulty Rogue Special Mode None Game No. 43 Rogue 38 Adventurer 5 Explorer 0 Win Type - Total 1 Types 1/0/0/0/0/0/0/0/0 Lore% 20 Gallery% 38 Achievement% 31 Wizard Run 0 Options --------- Layout 1 ASCII 0 Keyboard 0 Movement Mouse Keybinds 0 Fullscreen 1 Font 24/Terminus Map View 50x35 Zoom Use 0% Tactical HUD 0 Map Filters NONE Filters NONE Steam 1 RUN: 05f091a7-623c-40ce-af23-66b1005d495b